[Event "FIDE WYCC Girls U14 2023"]
[Site "Montesilvano"]
[Date "2023.11.17"]
[Round "5.3"]
[White "Sezdbekova, Aizhan"]
[Black "Kirtadze, Anastasia"]
[Result "0-1"]
[ECO "B40"]
[WhiteElo "1594"]
[BlackElo "1921"]
[Annotator "NA"]
[PlyCount "66"]
[EventDate "2023.11.13"]
[EventType "swiss"]
[EventCountry "ITA"]
[SourceTitle "playchess.com"]
[Source "ChessBase"]
[SourceQuality "1"]
[TimeControl "40/5400+30:1800+30"]

1. e4 {[%emt 0:00:20]} c5 {[%emt 0:00:04]} 2. Nf3 {[%emt 0:00:04]} e6 {[%emt 0:00:02]} 3. c3 {[%emt 0:00:05]} d5 {[%emt 0:00:03]} 4. exd5 {[%emt 0:00:05]} Qxd5 {[%emt 0:00:05]} 5. d4 {[%emt 0:00:15]} Nf6 {[%emt 0:03:24]} 6. Bd3 {[%emt 0:01:09]} Be7 {[%emt 0:04:35]} 7. O-O {[%emt 0:00:39]} O-O {[%emt 0:01:18]} 8. c4 {[%emt 0:07:19]} Qd8 {[%emt 0:02:35]} 9. dxc5 {[%emt 0:03:01]} Bxc5 {[%emt 0:09:40]} 10. Nc3 {[%emt 0:05:14]} h6 {[%emt 0:00:52]} 11. Qe2 {[%emt 0:07:49]} Nc6 {[%emt 0:08:38]} 12. Rd1 {[%emt 0:18:26]} Qc7 {[%emt 0:05:51]} 13. a3 {[%emt 0:12:38]} Ng4 {[%emt 0:07:24]} 14. Be3 {[%emt 0:12:11]} Nxe3 {[%emt 0:07:32]} 15. fxe3 {[%emt 0:00:23]} a5 {[%emt 0:00:23]} 16. Na4 {[%emt 0:04:14]} b6 {[%emt 0:00:51]} 17. Nxc5 {[%emt 0:04:30]} bxc5 {[%emt 0:00:37]} 18. Bc2 {[%emt 0:00:32]} Ne5 {[%emt 0:05:11]} 19. Rab1 {[%emt 0:08:05]} Rb8 {[%emt 0:12:47]} 20. b3 {[%emt 0:03:50]} Bb7 {[%emt 0:01:59]} 21. Nxe5 {[%emt 0:02:05]} Qxe5 {[%emt 0:01:28]} 22. Rd7 {[%emt 0:00:54]} Bc6 {[%emt 0:03:12]} 23. Ra7 {[%emt 0:00:54]} Rbd8 {[%emt 0:02:56]} 24. Rd1 {[%emt 0:01:31]} Rxd1+ {[%emt 0:02:11]} 25. Bxd1 {[%emt 0:00:37]} Rd8 {[%emt 0:01:29]} 26. Bc2 {[%emt 0:03:35]} f5 {[%emt 0:04:54]} 27. Ra6 {[%emt 0:01:26]} Bb7 {[%emt 0:01:56]} 28. Ra7 {[%emt 0:00:48]} Rd7 {[%emt 0:06:16]} 29. e4 {[%emt 0:00:53]} Qd4+ {[%emt 0:02:43]} 30. Kf1 {[%emt 0:00:32]} fxe4 {[%emt 0:00:33]} 31. Bxe4 {[%emt 0:00:15]} Rf7+ {[%emt 0:00:49]} 32. Bf3 {[%emt 0:00:38]} Bxf3 {[%emt 0:00:41]} 33. Qxe6 {[%emt 0:00:26]} Bd5+ {[%emt 0:00:21]} 0-1

[Event "FIDE WYCC Girls U14 2023"]
[Site "Montesilvano"]
[Date "2023.11.17"]
[Round "5.4"]
[White "Khamdamova, Afruza"]
[Black "Montano Vicente, Guadalupe"]
[Result "*"]
[ECO "B54"]
[WhiteElo "2199"]
[BlackElo "1794"]
[Annotator "ChessBase"]
[PlyCount "83"]
[EventDate "2023.11.13"]
[EventType "swiss"]
[EventCountry "ITA"]
[SourceTitle "playchess.com"]
[Source "ChessBase"]
[SourceQuality "1"]
[TimeControl "40/5400+30:1800+30"]

1. e4 {[%emt 0:01:05]} c5 {[%emt 0:00:07]} 2. Nf3 {[%emt 0:01:15]} d6 {[%emt 0:00:10]} 3. d4 {[%emt 0:00:10]} cxd4 {[%emt 0:00:05]} 4. Nxd4 {[%emt 0:00:05]} Nf6 {[%emt 0:00:03]} 5. Nc3 {[%emt 0:00:06]} a6 {[%emt 0:00:02]} 6. f4 {[%emt 0:00:28]} Qc7 {[%emt 0:02:32]} 7. Bd3 {[%emt 0:01:19]} g6 {[%emt 0:02:49]} 8. Nf3 {[%emt 0:09:23]} Bg7 {[%emt 0:06:19]} 9. O-O {[%emt 0:00:46]} O-O {[%emt 0:01:36]} 10. Kh1 {[%emt 0:00:41]} Nc6 {[%emt 0:07:55]} 11. Be3 {[%emt 0:00:44]} b5 {[%emt 0:01:33]} 12. a4 {[%emt 0:06:30]} b4 {[%emt 0:07:59]} 13. Nd5 {[%emt 0:01:40]} Nxd5 {[%emt 0:04:23]} 14. exd5 {[%emt 0:00:05]} Na5 {[%emt 0:00:30]} 15. Qe1 {[%emt 0:09:14]} Bxb2 {[%emt 0:12:00]} 16. Rb1 {[%emt 0:02:51]} Bc3 {[%emt 0:00:53]} 17. Qh4 {[%emt 0:00:13]} Bg7 {[%emt 0:07:54]} 18. Rxb4 {[%emt 0:11:07]} Qc3 {[%emt 0:08:30]} 19. f5 {[%emt 0:14:06]} Bxf5 {[%emt 0:07:30]} 20. Bd2 {[%emt 0:02:33]} Qc8 {[%emt 0:03:59]} 21. Ng5 {[%emt 0:16:05]} h6 {[%emt 0:03:31]} 22. Ne4 {[%emt 0:04:28]} h5 {[%emt 0:06:05]} 23. Rb6 {[%emt 0:10:50]} Bxe4 {[%emt 0:06:33]} 24. Qxe4 {[%emt 0:00:16]} Nb7 {[%emt 0:00:30]} 25. Qxe7 {[%emt 0:01:15]} Nc5 {[%emt 0:00:30]} 26. Rc6 {[%emt 0:01:38]} Qg4 {[%emt 0:05:24]} 27. Qe2 {[%emt 0:03:19]} Qxe2 {[%emt 0:01:45]} 28. Bxe2 {[%emt 0:00:01]} Rfe8 {[%emt 0:02:05]} 29. Bf3 {[%emt 0:01:52]} Be5 {[%emt 0:00:16]} 30. a5 {[%emt 0:00:05]} Reb8 {[%emt 0:00:37]} 31. Be3 {[%emt 0:00:15]} Nd7 {[%emt 0:00:42]} 32. Be2 {[%emt 0:00:32]} Nf6 {[%emt 0:00:23]} 33. Bg5 {[%emt 0:01:16]} Nxd5 {[%emt 0:00:53]} 34. Bc4 {[%emt 0:00:29]} Nb4 {[%emt 0:00:38]} 35. Bxf7+ {[%emt 0:00:15]} Kg7 {[%emt 0:00:23]} 36. Rc7 {[%emt 0:00:15]} Rf8 {[%emt 0:00:25]} 37. c3 {[%emt 0:01:07]} Nc2 {[%emt 0:00:26]} 38. Bd5+ {[%emt 0:00:34]} Kh8 {[%emt 0:00:06]} 39. Rc1 {[%emt 0:00:33]} Rab8 {[%emt 0:00:29]} 40. Rc6 {[%emt 0:00:00]} Na3 {[%emt 0:00:00]} 41. Rxa6 {[%emt 0:04:15]} Rb1 {[%emt 0:04:47]} 42. Ra8 {[%emt 0:07:07]} *

[Event "FIDE WYCC Girls U14 2023"]
[Site "Montesilvano"]
[Date "2023.11.17"]
[Round "5.5"]
[White "Sneha Halder"]
[Black "Mgeladze, Kesaria"]
[Result "0-1"]
[ECO "A00"]
[WhiteElo "1807"]
[BlackElo "2065"]
[Annotator "NA"]
[PlyCount "80"]
[EventDate "2023.11.13"]
[EventType "swiss"]
[EventCountry "ITA"]
[SourceTitle "playchess.com"]
[Source "ChessBase"]
[SourceQuality "1"]
[TimeControl "40/5400+30:1800+30"]

1. g3 {[%emt 0:02:30]} Nf6 {[%emt 0:00:19]} 2. Bg2 {[%emt 0:00:04]} g6 {[%emt 0:00:09]} 3. b3 {[%emt 0:00:04]} Bg7 {[%emt 0:00:06]} 4. Bb2 {[%emt 0:00:02]} O-O {[%emt 0:00:09]} 5. e4 {[%emt 0:00:07]} d6 {[%emt 0:00:27]} 6. Ne2 {[%emt 0:00:20]} c5 {[%emt 0:02:06]} 7. O-O {[%emt 0:00:35]} Nc6 {[%emt 0:00:15]} 8. f4 {[%emt 0:00:46]} Bd7 {[%emt 0:04:25]} 9. h3 {[%emt 0:03:44]} Qb6 {[%emt 0:17:58]} 10. Nbc3 {[%emt 0:03:37]} Nd4 {[%emt 0:01:09]} 11. e5 {[%emt 0:04:27]} dxe5 {[%emt 0:07:56]} 12. fxe5 {[%emt 0:00:25]} Nxe2+ {[%emt 0:00:14]} 13. Qxe2 {[%emt 0:00:32]} Ne8 {[%emt 0:01:19]} 14. Nd5 {[%emt 0:00:43]} Qd8 {[%emt 0:00:11]} 15. Nf4 {[%emt 0:02:49]} Qc7 {[%emt 0:04:23]} 16. Rae1 {[%emt 0:07:45]} Bc6 {[%emt 0:04:58]} 17. h4 {[%emt 0:03:28]} Bxg2 {[%emt 0:03:11]} 18. Qxg2 {[%emt 0:01:19]} Rd8 {[%emt 0:20:43]} 19. Bc3 {[%emt 0:16:24]} Qc8 {[%emt 0:04:43]} 20. e6 {[%emt 0:03:00]} Bxc3 {[%emt 0:04:49]} 21. dxc3 {[%emt 0:01:07]} Ng7 {[%emt 0:02:37]} 22. Nd5 {[%emt 0:01:05]} Qb8 {[%emt 0:08:55]} 23. Nxe7+ {[%emt 0:00:24]} Kh8 {[%emt 0:00:03]} 24. Nxg6+ {[%emt 0:00:10]} fxg6 {[%emt 0:00:39]} 25. Rxf8+ {[%emt 0:03:43]} Rxf8 {[%emt 0:00:05]} 26. e7 {[%emt 0:00:02]} Re8 {[%emt 0:00:21]} 27. Qf3 {[%emt 0:04:00]} Qd6 {[%emt 0:03:37]} 28. g4 {[%emt 0:00:26]} Kg8 {[%emt 0:00:53]} 29. Qe3 {[%emt 0:01:37]} Qf6 {[%emt 0:01:44]} 30. g5 {[%emt 0:16:13]} Qd6 {[%emt 0:00:55]} 31. Qe4 {[%emt 0:07:14]} Nf5 {[%emt 0:00:29]} 32. Qxb7 {[%emt 0:01:28]} Qg3+ {[%emt 0:01:19]} 33. Kf1 {[%emt 0:00:01]} Nxe7 {[%emt 0:00:52]} 34. Qe4 {[%emt 0:05:25]} Rf8+ {[%emt 0:01:19]} 35. Ke2 {[%emt 0:00:01]} Qd6 {[%emt 0:00:36]} 36. Rf1 {[%emt 0:02:27]} Nf5 {[%emt 0:00:31]} 37. Ke1 {[%emt 0:00:51]} Rd8 {[%emt 0:00:47]} 38. Kf2 {[%emt 0:01:26]} Qh2+ {[%emt 0:01:08]} 39. Kf3 {[%emt 0:00:13]} Qh3+ {[%emt 0:00:04]} 40. Kf2 {[%emt 0:00:00]} Qxf1+ {[%emt 0:00:00]} 0-1

[Event "FIDE WYCC Girls U14 2023"]
[Site "Montesilvano"]
[Date "2023.11.17"]
[Round "5.6"]
[White "Lyutsinger, Iren"]
[Black "Avetisyan, Ani"]
[Result "0-1"]
[ECO "B13"]
[WhiteElo "2020"]
[BlackElo "1770"]
[Annotator "NA"]
[PlyCount "70"]
[EventDate "2023.11.13"]
[EventType "swiss"]
[EventCountry "ITA"]
[SourceTitle "playchess.com"]
[Source "ChessBase"]
[SourceQuality "1"]
[TimeControl "40/5400+30:1800+30"]

1. e4 {[%emt 0:00:02]} c6 {[%emt 0:00:06]} 2. d4 {[%emt 0:00:05]} d5 {[%emt 0:00:05]} 3. exd5 {[%emt 0:00:05]} cxd5 {[%emt 0:00:04]} 4. c4 {[%emt 0:00:04]} Nf6 {[%emt 0:00:08]} 5. Nc3 {[%emt 0:00:06]} Nc6 {[%emt 0:00:11]} 6. Nf3 {[%emt 0:00:42]} Bg4 {[%emt 0:01:16]} 7. cxd5 {[%emt 0:00:20]} Nxd5 {[%emt 0:00:12]} 8. Qb3 Bxf3 {[%emt 0:00:59]} 9. gxf3 {[%emt 0:00:13]} e6 {[%emt 0:00:30]} 10. Qxb7 {[%emt 0:00:28]} Nxd4 {[%emt 0:00:14]} 11. Bb5+ {[%emt 0:00:08]} Nxb5 {[%emt 0:00:08]} 12. Qc6+ {[%emt 0:00:05]} Ke7 {[%emt 0:00:06]} 13. Qc5+ {[%emt 0:00:20]} Nd6 {[%emt 0:00:07]} 14. Nxd5+ exd5 15. Qxd5 {[%emt 0:02:05]} Qb8 {[%emt 0:11:19]} 16. O-O {[%emt 0:04:19]} Qb7 {[%emt 0:01:12]} 17. Qd4 {[%emt 0:18:28]} f6 {[%emt 0:12:13]} 18. Bf4 {[%emt 0:07:04]} Rd8 {[%emt 0:05:35]} 19. Rac1 {[%emt 0:04:28]} Kf7 {[%emt 0:17:14]} 20. Rfe1 {[%emt 0:16:28]} Be7 {[%emt 0:18:11]} 21. Rc5 {[%emt 0:12:24]} Rhe8 {[%emt 0:04:03]} 22. Qd3 {[%emt 0:08:57]} Kg8 {[%emt 0:10:27]} 23. Qc3 {[%emt 0:14:28]} Bf8 {[%emt 0:05:20]} 24. Rc1 {[%emt 0:01:49]} Kh8 {[%emt 0:02:18]} 25. Rc6 {[%emt 0:04:06]} Nf5 {[%emt 0:02:26]} 26. Rc7 {[%emt 0:01:11]} Qd5 {[%emt 0:00:30]} 27. Qc6 {[%emt 0:00:47]} Qxc6 {[%emt 0:00:21]} 28. R1xc6 {[%emt 0:00:54]} Nd4 {[%emt 0:00:19]} 29. Ra6 {[%emt 0:01:25]} Ne2+ {[%emt 0:00:13]} 30. Kg2 {[%emt 0:00:03]} Nxf4+ {[%emt 0:00:05]} 31. Kg3 {[%emt 0:00:02]} Bd6 {[%emt 0:00:19]} 32. Rxd6 {[%emt 0:00:21]} Ne2+ {[%emt 0:00:08]} 33. Kg2 {[%emt 0:00:11]} Rxd6 {[%emt 0:00:04]} 34. Rxa7 {[%emt 0:00:06]} Rd1 {[%emt 0:00:17]} 35. f4 {[%emt 0:00:20]} Rg1+ {[%emt 0:00:14]} 0-1

[Event "FIDE WYCC Girls U14 2023"]
[Site "Montesilvano"]
[Date "2023.11.17"]
[Round "5.7"]
[White "Romany, Joy"]
[Black "Arzur, Maia"]
[Result "*"]
[WhiteElo "1764"]
[BlackElo "1997"]
[Annotator "NA"]
[PlyCount "91"]
[EventDate "2023.11.13"]
[EventType "swiss"]
[EventCountry "ITA"]
[SourceTitle "playchess.com"]
[Source "ChessBase"]
[SourceQuality "1"]
[TimeControl "40/5400+30:1800+30"]

1. d4 {[%emt 0:00:04]} d5 {[%emt 0:00:18]} 2. c4 {[%emt 0:00:24]} e6 {[%emt 0:00:19]} 3. Nf3 {[%emt 0:00:05]} Nf6 {[%emt 0:00:22]} 4. g3 {[%emt 0:00:03]} Bb4+ {[%emt 0:00:34]} 5. Bd2 {[%emt 0:01:41]} Be7 {[%emt 0:00:35]} 6. Bg2 {[%emt 0:00:24]} O-O {[%emt 0:01:01]} 7. O-O {[%emt 0:00:12]} Nbd7 {[%emt 0:00:54]} 8. Qc2 {[%emt 0:00:47]} Ne4 {[%emt 0:01:25]} 9. Nc3 {[%emt 0:04:33]} Nxd2 {[%emt 0:02:28]} 10. Nxd2 {[%emt 0:00:17]} c6 {[%emt 0:00:17]} 11. e4 {[%emt 0:03:42]} dxe4 {[%emt 0:02:33]} 12. Ndxe4 {[%emt 0:00:37]} f5 {[%emt 0:00:41]} 13. Nd2 {[%emt 0:00:32]} e5 {[%emt 0:00:26]} 14. d5 {[%emt 0:19:32]} e4 {[%emt 0:07:07]} 15. Rad1 {[%emt 0:10:38]} Qc7 {[%emt 0:09:25]} 16. Nb3 {[%emt 0:06:42]} Nf6 {[%emt 0:09:19]} 17. Rd2 {[%emt 0:14:09]} Ng4 {[%emt 0:08:39]} 18. Re2 {[%emt 0:06:41]} Bg5 {[%emt 0:06:05]} 19. Nd1 {[%emt 0:06:07]} Qf7 {[%emt 0:05:36]} 20. f3 {[%emt 0:04:58]} Nf6 {[%emt 0:11:43]} 21. fxe4 {[%emt 0:04:16]} fxe4 {[%emt 0:01:11]} 22. Bxe4 {[%emt 0:01:22]} Bh3 {[%emt 0:01:06]} 23. Bg2 {[%emt 0:02:16]} Bxg2 {[%emt 0:01:37]} 24. Kxg2 {[%emt 0:01:28]} cxd5 {[%emt 0:03:13]} 25. Qf5 {[%emt 0:00:51]} Qh5 {[%emt 0:05:29]} 26. Ref2 {[%emt 0:01:56]} g6 {[%emt 0:02:22]} 27. Qe6+ {[%emt 0:01:20]} Kg7 {[%emt 0:00:18]} 28. h4 {[%emt 0:00:54]} Rae8 {[%emt 0:01:41]} 29. Qd6 {[%emt 0:00:31]} Ne4 {[%emt 0:02:42]} 30. Qxd5 {[%emt 0:06:09]} Nxf2 {[%emt 0:02:35]} 31. Rxf2 {[%emt 0:00:48]} Bf6 {[%emt 0:03:45]} 32. Qxb7+ {[%emt 0:00:34]} Re7 {[%emt 0:00:14]} 33. Qd5 {[%emt 0:00:47]} Qxd5+ {[%emt 0:00:45]} 34. cxd5 {[%emt 0:00:01]} Rd8 {[%emt 0:02:57]} 35. Rd2 {[%emt 0:00:32]} Kf7 {[%emt 0:00:43]} 36. Kf3 {[%emt 0:00:43]} Re5 {[%emt 0:01:10]} 37. Nc3 {[%emt 0:00:52]} Rf5+ {[%emt 0:00:46]} 38. Ke4 {[%emt 0:00:41]} Re8+ {[%emt 0:02:41]} 39. Kd3 {[%emt 0:00:12]} Rf3+ {[%emt 0:01:34]} 40. Kc4 {[%emt 0:00:00]} Bxc3 {[%emt 0:00:00]} 41. bxc3 {[%emt 0:00:49]} Ree3 {[%emt 0:05:24]} 42. Rc2 {[%emt 0:01:50]} Ke7 {[%emt 0:04:28]} 43. Kb4 {[%emt 0:02:02]} Rxg3 {[%emt 0:02:38]} 44. c4 {[%emt 0:00:16]} Rg4 {[%emt 0:02:11]} 45. Kb5 {[%emt 0:00:10]} Ree4 {[%emt 0:02:08]} 46. c5 {[%emt 0:01:46]} *

[Event "FIDE WYCC Girls U14 2023"]
[Site "Montesilvano"]
[Date "2023.11.17"]
[Round "5.8"]
[White "Stankovic, Andrea"]
[Black "Goriachkina, Oksana"]
[Result "0-1"]
[ECO "D43"]
[WhiteElo "1768"]
[BlackElo "1915"]
[Annotator "NA"]
[PlyCount "78"]
[EventDate "2023.11.13"]
[EventType "swiss"]
[EventCountry "ITA"]
[SourceTitle "playchess.com"]
[Source "ChessBase"]
[SourceQuality "1"]
[TimeControl "40/5400+30:1800+30"]

1. d4 {[%emt 0:00:01]} d5 {[%emt 0:00:03]} 2. Nf3 {[%emt 0:00:05]} Nf6 {[%emt 0:00:05]} 3. c4 {[%emt 0:00:10]} e6 {[%emt 0:00:04]} 4. Nc3 {[%emt 0:00:11]} c6 {[%emt 0:00:03]} 5. Bg5 {[%emt 0:00:07]} h6 {[%emt 0:00:04]} 6. Bxf6 {[%emt 0:00:14]} Qxf6 {[%emt 0:00:02]} 7. e3 {[%emt 0:00:15]} g6 {[%emt 0:00:04]} 8. Be2 {[%emt 0:00:28]} Bg7 {[%emt 0:00:04]} 9. O-O {[%emt 0:00:18]} O-O {[%emt 0:00:03]} 10. Ne5 {[%emt 0:01:47]} c5 {[%emt 0:09:39]} 11. f4 {[%emt 0:05:29]} Nc6 {[%emt 0:07:50]} 12. Bf3 {[%emt 0:08:18]} cxd4 {[%emt 0:01:15]} 13. exd4 {[%emt 0:00:56]} Qxf4 {[%emt 0:05:11]} 14. cxd5 {[%emt 0:05:11]} Nxd4 {[%emt 0:03:08]} 15. Nd3 {[%emt 0:00:33]} Nxf3+ {[%emt 0:00:13]} 16. Rxf3 {[%emt 0:00:27]} Qd4+ {[%emt 0:00:04]} 17. Nf2 {[%emt 0:02:24]} exd5 {[%emt 0:03:48]} 18. Rd3 {[%emt 0:03:17]} Qh4 {[%emt 0:11:29]} 19. Nxd5 {[%emt 0:04:34]} b6 {[%emt 0:09:01]} 20. g3 {[%emt 0:02:58]} Qg5 {[%emt 0:01:40]} 21. Qf3 {[%emt 0:07:01]} Bb7 {[%emt 0:03:46]} 22. Rad1 {[%emt 0:01:14]} Rad8 {[%emt 0:12:57]} 23. Ne4 {[%emt 0:06:07]} Qe5 {[%emt 0:01:28]} 24. Ndf6+ {[%emt 0:08:36]} Bxf6 {[%emt 0:00:09]} 25. Nxf6+ {[%emt 0:02:53]} Kg7 {[%emt 0:00:10]} 26. Nd5 {[%emt 0:03:03]} Rxd5 {[%emt 0:02:16]} 27. Rxd5 {[%emt 0:00:37]} Bxd5 {[%emt 0:00:08]} 28. Qxd5 {[%emt 0:01:33]} Qxb2 {[%emt 0:00:36]} 29. Rf1 {[%emt 0:02:19]} Qc3 {[%emt 0:01:31]} 30. Kg2 {[%emt 0:00:41]} Qc5 {[%emt 0:00:59]} 31. Qd7 {[%emt 0:00:56]} a6 {[%emt 0:02:37]} 32. Rf2 {[%emt 0:00:30]} Qc4 {[%emt 0:01:04]} 33. Qd6 {[%emt 0:01:42]} Qe4+ {[%emt 0:02:22]} 34. Kg1 {[%emt 0:02:22]} Qe6 {[%emt 0:01:05]} 35. Qd4+ {[%emt 0:00:54]} Kg8 {[%emt 0:00:05]} 36. Rf6 {[%emt 0:05:54]} Qxa2 {[%emt 0:03:17]} 37. Qxb6 {[%emt 0:02:52]} Re8 {[%emt 0:02:29]} 38. Rf2 {[%emt 0:05:03]} Re1+ {[%emt 0:01:21]} 39. Kg2 {[%emt 0:03:41]} Re2 {[%emt 0:06:01]} 0-1

[Event "FIDE WYCC Girls U14 2023"]
[Site "Montesilvano"]
[Date "2023.11.17"]
[Round "5.9"]
[White "Stefan, Iulia-Cristiana"]
[Black "Tsetskhladze, Mariam"]
[Result "0-1"]
[ECO "A46"]
[WhiteElo "1748"]
[BlackElo "1911"]
[Annotator "NA"]
[PlyCount "52"]
[EventDate "2023.11.13"]
[EventType "swiss"]
[EventCountry "ITA"]
[SourceTitle "playchess.com"]
[Source "ChessBase"]
[SourceQuality "1"]
[TimeControl "40/5400+30:1800+30"]

1. d4 {[%emt 0:00:02]} Nf6 {[%emt 0:00:25]} 2. Nf3 {[%emt 0:00:05]} e6 {[%emt 0:00:06]} 3. Bg5 {[%emt 0:00:04]} h6 {[%emt 0:00:36]} 4. Bh4 {[%emt 0:00:05]} d5 {[%emt 0:02:10]} 5. e3 {[%emt 0:00:10]} Be7 {[%emt 0:01:11]} 6. Nbd2 {[%emt 0:00:47]} O-O {[%emt 0:00:51]} 7. Bd3 {[%emt 0:00:57]} b6 {[%emt 0:03:37]} 8. Bxf6 {[%emt 0:10:08]} Bxf6 {[%emt 0:00:31]} 9. Qe2 {[%emt 0:00:09]} c5 {[%emt 0:03:54]} 10. c3 {[%emt 0:00:07]} Nc6 {[%emt 0:03:06]} 11. h4 {[%emt 0:03:33]} Bb7 {[%emt 0:20:15]} 12. O-O-O {[%emt 0:26:25]} Rc8 {[%emt 0:08:12]} 13. Bc2 {[%emt 0:03:36]} e5 {[%emt 0:12:55]} 14. dxe5 {[%emt 0:04:48]} Bxe5 {[%emt 0:06:55]} 15. Qd3 {[%emt 0:18:19]} f5 {[%emt 0:06:14]} 16. g4 {[%emt 0:09:03]} Kh8 {[%emt 0:14:49]} 17. gxf5 {[%emt 0:01:52]} Bf6 {[%emt 0:01:52]} 18. Ng5 {[%emt 0:01:41]} Ne5 {[%emt 0:01:10]} 19. Qe2 {[%emt 0:00:26]} d4 {[%emt 0:02:21]} 20. Nde4 {[%emt 0:04:28]} d3 {[%emt 0:02:17]} 21. Bxd3 {[%emt 0:03:43]} Nxd3+ {[%emt 0:00:01]} 22. Rxd3 {[%emt 0:00:11]} Qe7 {[%emt 0:00:41]} 23. Qg4 {[%emt 0:04:07]} Bxg5 {[%emt 0:01:02]} 24. hxg5 {[%emt 0:00:30]} Qxe4 {[%emt 0:01:02]} 25. Rxh6+ {[%emt 0:05:15]} gxh6 {[%emt 0:01:25]} 26. Qh5 {[%emt 0:00:40]} Qh1+ {[%emt 0:00:09]} 0-1

[Event "FIDE WYCC Girls U14 2023"]
[Site "Montesilvano"]
[Date "2023.11.17"]
[Round "5.10"]
[White "Khulan, Bayarsaikhan"]
[Black "Stoll, Lucia"]
[Result "1-0"]
[ECO "A13"]
[WhiteElo "1615"]
[BlackElo "1887"]
[Annotator "NA"]
[PlyCount "81"]
[EventDate "2023.11.13"]
[EventType "swiss"]
[EventCountry "ITA"]
[SourceTitle "playchess.com"]
[Source "ChessBase"]
[SourceQuality "1"]
[TimeControl "40/5400+30:1800+30"]

1. Nf3 {[%emt 0:00:02]} d5 {[%emt 0:00:07]} 2. c4 {[%emt 0:00:05]} e6 {[%emt 0:00:23]} 3. g3 {[%emt 0:00:06]} Nf6 {[%emt 0:00:16]} 4. Bg2 {[%emt 0:00:05]} dxc4 {[%emt 0:00:25]} 5. Qa4+ {[%emt 0:00:22]} Nbd7 {[%emt 0:00:08]} 6. Qxc4 {[%emt 0:07:08]} a6 {[%emt 0:00:12]} 7. Qc2 {[%emt 0:00:31]} c5 {[%emt 0:00:21]} 8. O-O {[%emt 0:04:02]} b5 {[%emt 0:01:25]} 9. b3 {[%emt 0:10:42]} Bb7 {[%emt 0:01:23]} 10. Bb2 {[%emt 0:00:07]} Be7 {[%emt 0:02:16]} 11. d4 {[%emt 0:01:57]} Rc8 {[%emt 0:02:20]} 12. dxc5 {[%emt 0:00:43]} Bxc5 {[%emt 0:02:10]} 13. Qd2 {[%emt 0:04:27]} O-O {[%emt 0:05:32]} 14. e3 {[%emt 0:02:20]} Qb6 {[%emt 0:05:27]} 15. b4 {[%emt 0:07:04]} Be7 {[%emt 0:06:12]} 16. a3 {[%emt 0:01:11]} Rfd8 {[%emt 0:09:38]} 17. Qe2 {[%emt 0:07:05]} Bd5 {[%emt 0:05:45]} 18. Nbd2 {[%emt 0:02:28]} Qb7 {[%emt 0:01:33]} 19. Rac1 {[%emt 0:03:24]} Nb6 {[%emt 0:06:04]} 20. Rfd1 {[%emt 0:05:09]} Ne4 {[%emt 0:09:23]} 21. Bf1 {[%emt 0:15:43]} Na4 {[%emt 0:13:23]} 22. Nxe4 {[%emt 0:01:48]} Bxe4 {[%emt 0:00:23]} 23. Ne1 {[%emt 0:00:55]} Nxb2 {[%emt 0:00:58]} 24. Rxd8+ {[%emt 0:04:23]} Rxd8 {[%emt 0:01:08]} 25. Qxb2 {[%emt 0:00:05]} Bf6 {[%emt 0:00:41]} 26. Qe2 {[%emt 0:02:43]} Qd7 {[%emt 0:07:20]} 27. Bg2 {[%emt 0:01:13]} Bxg2 {[%emt 0:03:12]} 28. Kxg2 {[%emt 0:00:47]} g6 {[%emt 0:00:36]} 29. Qc2 {[%emt 0:01:12]} Qd5+ {[%emt 0:01:37]} 30. Nf3 {[%emt 0:08:40]} Qd3 {[%emt 0:03:22]} 31. Qc7 {[%emt 0:01:18]} Kg7 {[%emt 0:04:11]} 32. Rc6 {[%emt 0:01:08]} Qe2 {[%emt 0:07:46]} 33. Ne5 {[%emt 0:02:27]} Bxe5 {[%emt 0:00:45]} 34. Qxd8 {[%emt 0:00:25]} Bf6 {[%emt 0:00:29]} 35. Qd7 {[%emt 0:00:24]} Qg4 {[%emt 0:00:29]} 36. Rc7 {[%emt 0:01:27]} Qe4+ {[%emt 0:00:14]} 37. f3 {[%emt 0:00:35]} Qxe3 {[%emt 0:00:47]} 38. Qxf7+ {[%emt 0:00:37]} Kh6 {[%emt 0:00:07]} 39. Qxh7+ {[%emt 0:00:41]} Kg5 {[%emt 0:00:04]} 40. Rc5+ {[%emt 0:00:00]} e5 {[%emt 0:00:00]} 41. Qh4+ {[%emt 0:00:40]} 1-0

[Event "FIDE WYCC Girls U14 2023"]
[Site "Montesilvano"]
[Date "2023.11.17"]
[Round "5.11"]
[White "Chasouraki, Chrysi"]
[Black "Negre, Emilie"]
[Result "*"]
[ECO "C77"]
[WhiteElo "1559"]
[BlackElo "1871"]
[Annotator "NA"]
[PlyCount "83"]
[EventDate "2023.11.13"]
[EventType "swiss"]
[EventCountry "ITA"]
[SourceTitle "playchess.com"]
[Source "ChessBase"]
[SourceQuality "1"]
[TimeControl "40/5400+30:1800+30"]

1. e4 {[%emt 0:00:02]} e5 {[%emt 0:00:04]} 2. Nf3 {[%emt 0:00:08]} Nc6 {[%emt 0:00:04]} 3. Bb5 {[%emt 0:00:06]} a6 {[%emt 0:00:05]} 4. Ba4 {[%emt 0:00:03]} Nf6 {[%emt 0:00:11]} 5. d3 {[%emt 0:00:05]} b5 {[%emt 0:00:11]} 6. Bb3 {[%emt 0:00:04]} Bc5 {[%emt 0:00:08]} 7. Bg5 {[%emt 0:00:03]} h6 {[%emt 0:00:39]} 8. Bh4 {[%emt 0:00:05]} d6 {[%emt 0:00:20]} 9. c3 {[%emt 0:00:10]} Bb6 {[%emt 0:02:04]} 10. a4 {[%emt 0:00:16]} Rb8 {[%emt 0:02:55]} 11. axb5 {[%emt 0:00:19]} axb5 {[%emt 0:00:07]} 12. Na3 {[%emt 0:00:35]} g5 {[%emt 0:11:02]} 13. Bg3 {[%emt 0:01:55]} Ne7 {[%emt 0:09:13]} 14. Nxb5 {[%emt 0:05:18]} Ng6 {[%emt 0:00:12]} 15. Ba4 {[%emt 0:11:31]} O-O {[%emt 0:00:44]} 16. h4 {[%emt 0:10:08]} g4 {[%emt 0:02:08]} 17. Nh2 {[%emt 0:00:16]} d5 {[%emt 0:14:39]} 18. h5 {[%emt 0:05:40]} Nf4 {[%emt 0:16:31]} 19. Bxf4 {[%emt 0:02:37]} exf4 {[%emt 0:00:08]} 20. e5 {[%emt 0:00:56]} Qe7 {[%emt 0:02:59]} 21. d4 {[%emt 0:01:49]} g3 {[%emt 0:05:09]} 22. fxg3 {[%emt 0:13:39]} fxg3 {[%emt 0:00:17]} 23. Nf3 {[%emt 0:00:11]} Ne4 {[%emt 0:04:28]} 24. Rh4 {[%emt 0:06:31]} c6 {[%emt 0:03:37]} 25. Na3 {[%emt 0:01:21]} Ba5 {[%emt 0:02:56]} 26. Qc1 {[%emt 0:02:25]} Rxb2 {[%emt 0:05:11]} 27. Rxe4 {[%emt 0:02:11]} dxe4 {[%emt 0:00:11]} 28. Qxb2 {[%emt 0:00:27]} exf3 {[%emt 0:00:15]} 29. gxf3 {[%emt 0:02:53]} Qh4 {[%emt 0:01:32]} 30. O-O-O {[%emt 0:01:26]} Qxh5 {[%emt 0:05:57]} 31. Bxc6 {[%emt 0:05:47]} Qg5+ {[%emt 0:02:28]} 32. Qd2 {[%emt 0:01:25]} Qxd2+ {[%emt 0:00:06]} 33. Kxd2 {[%emt 0:00:09]} h5 {[%emt 0:00:27]} 34. Nc4 {[%emt 0:00:52]} Bd8 {[%emt 0:00:38]} 35. f4 {[%emt 0:03:18]} h4 {[%emt 0:01:01]} 36. Bf3 {[%emt 0:03:56]} h3 {[%emt 0:03:06]} 37. Rg1 {[%emt 0:00:16]} Bh4 {[%emt 0:02:21]} 38. Ne3 {[%emt 0:04:32]} Kg7 {[%emt 0:04:12]} 39. Nf1 {[%emt 0:04:05]} g2 {[%emt 0:00:36]} 40. Ke3 {[%emt 0:00:00]} Rg8 {[%emt 0:00:00]} 41. c4 {[%emt 0:10:55]} Kf8 {[%emt 0:03:52]} 42. d5 {[%emt 0:04:52]} *